fUST/lending_fUST_20240904
["ID","MTS","AMOUNT","RATE_DAILY","PERIOD"]
[337097817,1725424242246,-500.0,0.0002767,2]
[337097818,1725424242255,-500.0,0.0002767,2]
[337097819,1725424242265,-500.0,0.0002767,2]
[337097820,1725424242274,-500.0,0.0002767,2]
[337097821,1725424242285,-500.0,0.0002767,2]
[337097822,1725424242295,-500.0,0.0002767,2]
[337097823,1725424242305,-176.4,0.0002767,2]
[337097824,1725424242319,-500.0,0.00027671,2]
[337097825,1725424242329,-500.0,0.00027671,2]
[337097826,1725424242340,-500.0,0.00027671,2]
[337097827,1725424242350,-500.0,0.00027671,2]
[337097828,1725424242360,-500.0,0.00027671,2]
[337097829,1725424242371,-500.0,0.00027671,2]
[337097830,1725424242383,-222.97,0.00027671,2]
[337097831,1725424242393,-500.0,0.00027671,2]
[337097832,1725424242405,-500.0,0.00027671,2]
[337097833,1725424242415,-500.0,0.00027671,2]
[337097834,1725424242425,-542.44594221,0.00027671,2]
[337097835,1725424242437,-515.44973936,0.00027671,2]
[337097836,1725424242451,-500.0,0.00027671,2]
[337097837,1725424242461,-500.0,0.00027671,2]
[337097838,1725424242471,-500.0,0.00027671,2]
[337097839,1725424242481,-500.0,0.00027671,2]
[337097840,1725424242491,-500.0,0.00027671,2]
[337097841,1725424242501,-500.0,0.00027671,2]
[337097842,1725424242511,-500.0,0.00027671,2]
[337097843,1725424242525,-500.0,0.00027671,2]
[337097844,1725424242535,-500.0,0.00027671,2]
[337097845,1725424242544,-500.0,0.00027671,2]
[337097846,1725424242554,-500.0,0.00027671,2]
[337097847,1725424242566,-9.73742284,0.00027671,2]
[337097848,1725424242580,-490.26257716,0.00027671,2]
[337097849,1725424242590,-500.0,0.00027671,2]
[337097850,1725424242600,-500.0,0.00027671,2]
[337097851,1725424242611,-500.0,0.00027671,2]
[337097852,1725424242621,-500.0,0.00027671,2]
[337097853,1725424242630,-500.0,0.00027671,2]
[337097854,1725424242640,-500.0,0.00027671,2]
[337097855,1725424242649,-500.0,0.00027671,2]
[337097856,1725424242659,-500.0,0.00027671,2]
[337097857,1725424242668,-500.0,0.00027671,2]
[337097858,1725424242678,-500.0,0.00027671,2]
[337097859,1725424242691,-764.59,0.00027671,2]
[337097860,1725424242700,-452.42853985,0.00027671,2]
[337097861,1725424242825,-1776.12,0.0002499,3]
[337097862,1725424242834,-500.0,0.00027397,2]
[337097863,1725424242845,-500.0,0.00027397,2]
[337097864,1725424242855,-47.57146015,0.00027671,2]
[337097865,1725424242865,-665.35,0.00027671,2]
[337097866,1725424242875,-500.0,0.00027671,2]
[337097867,1725424242884,-500.0,0.00027671,2]
[337097868,1725424242894,-1153.31,0.00027671,2]
[337097869,1725424242903,-500.0,0.00027671,2]
[337097870,1725424242913,-500.0,0.00027671,2]
[337097871,1725424242922,-500.0,0.00027671,2]
[337097872,1725424242932,-3487.0,0.00027671,2]
[337097873,1725424242945,-500.0,0.00027671,2]
[337097874,1725424242955,-500.0,0.00027671,2]
[337097875,1725424242965,-500.0,0.00027671,2]
[337097876,1725424242975,-207.23882432,0.00027671,2]
[337097894,1725424243563,-500.0,0.00027397,2]
[337097895,1725424243572,-292.76117568,0.00027671,2]
[337097896,1725424243582,-500.0,0.00027671,2]
[337097897,1725424243592,-1839.93,0.00027671,2]
[337097898,1725424243602,-500.0,0.00027671,2]
[337097899,1725424243612,-264.18583086,0.00027671,2]
[337097900,1725424243626,-725.33416914,0.00027671,2]
[337097901,1725424243637,-500.0,0.00027671,2]
[337097902,1725424243647,-500.0,0.00027671,2]
[337097903,1725424243658,-500.0,0.00027671,2]
[337097904,1725424243668,-598.66,0.00027671,2]
[337097905,1725424243679,-500.0,0.00027671,2]
[337097907,1725424243690,-500.0,0.00027671,2]
[337097908,1725424243701,-614.2,0.00027671,2]
[337097909,1725424243711,-500.0,0.00027671,2]
[337097910,1725424243722,-500.0,0.00027671,2]
[337097911,1725424243732,-500.0,0.00027671,2]
[337097912,1725424243743,-500.0,0.00027671,2]
[337097913,1725424243752,-500.0,0.00027671,2]
[337097914,1725424243762,-3499.24285952,0.00027671,2]
[337097915,1725424243774,-5742.04714048,0.00027671,2]
[337097916,1725424243784,-500.0,0.00027671,2]
[337097917,1725424243793,-500.0,0.00027671,2]
[337097918,1725424243803,-500.0,0.00027671,2]
[337097919,1725424243813,-1119.47,0.00027671,2]
[337097920,1725424243822,-500.0,0.00027671,2]
[337097921,1725424243832,-823.2,0.00027671,2]
[337097922,1725424243841,-815.56,0.00027671,2]
[337097923,1725424243851,-1389.49,0.00027671,2]
[337097924,1725424243860,-500.0,0.00027671,2]
[337097925,1725424243870,-500.0,0.00027671,2]
[337097926,1725424243880,-500.0,0.00027671,2]
[337097927,1725424243891,-519.65280557,0.00027671,2]
[337097928,1725424243900,-500.0,0.00027671,2]
[337097929,1725424243910,-500.0,0.00027671,2]
[337097930,1725424243920,-500.0,0.00027671,2]
[337097931,1725424243929,-801.84,0.00027671,2]
[337097932,1725424243941,-500.0,0.00027671,2]
[337097933,1725424243950,-500.0,0.00027671,2]
[337097934,1725424243960,-628.74,0.00027671,2]
[337097935,1725424243969,-1311.97,0.00027671,2]
[337097936,1725424243979,-2316.94,0.00027671,2]
[337097937,1725424243988,-500.0,0.00027671,2]
[337097938,1725424243998,-373.88883005,0.00027671,2]
[337097939,1725424244007,-500.0,0.00027671,2]
[337097940,1725424244017,-4046.85,0.00027671,2]
[337097941,1725424244027,-500.0,0.00027671,2]
[337097942,1725424244037,-500.0,0.00027671,2]
[337097943,1725424244047,-500.0,0.00027671,2]
[337097944,1725424244057,-500.0,0.00027671,2]
[337097945,1725424244066,-500.0,0.00027671,2]
[337097946,1725424244077,-500.0,0.00027671,2]
[337097947,1725424244088,-500.0,0.00027671,2]
[337097948,1725424244100,-489.39826735,0.00027671,2]
[337097949,1725424244110,-268.37,0.00027671,2]
[337097950,1725424244119,-6880.82,0.00027671,2]
[337097951,1725424244130,-500.0,0.00027671,2]
[337097952,1725424244140,-290.77752533,0.00027671,2]
[337097953,1725424244151,-500.0,0.00027671,2]
[337097954,1725424244162,-500.0,0.00027671,2]
[337097955,1725424244174,-500.0,0.00027671,2]
[337097956,1725424244184,-500.0,0.00027671,2]
[337097957,1725424244198,-500.0,0.00027671,2]
[337097958,1725424244207,-500.0,0.00027671,2]
[337097959,1725424244217,-500.0,0.00027671,2]
[337097960,1725424244227,-500.0,0.00027671,2]
[337097961,1725424244236,-255.0334715,0.00027673,5]
[337097962,1725424244246,-161.72,0.000277,14]
[337097963,1725424244256,-407.97,0.000277,7]
[337097964,1725424244265,-1000.0,0.00027921,5]
[337097965,1725424244276,-500.0,0.00027944,2]
[337097966,1725424244287,-500.0,0.00027944,2]
[337097967,1725424244298,-500.0,0.00027944,2]
[337097968,1725424244308,-500.0,0.00027944,2]
[337097969,1725424244318,-500.0,0.00027944,2]
[337097970,1725424244327,-500.0,0.00027944,2]
[337097971,1725424244338,-500.0,0.00027944,2]
[337097972,1725424244347,-500.0,0.00027944,2]
[337097973,1725424244357,-500.0,0.00027944,2]
[337097974,1725424244367,-500.0,0.00027944,2]
[337097975,1725424244378,-512.17408081,0.00027944,2]
[337097976,1725424244390,-500.0,0.00027944,2]
[337097977,1725424244400,-500.0,0.00027944,2]
[337097978,1725424244410,-500.0,0.00027944,2]
[337097979,1725424244421,-500.0,0.00027944,2]
[337097980,1725424244433,-500.0,0.00027944,2]
[337097981,1725424244446,-500.0,0.00027944,2]
[337097982,1725424244456,-500.0,0.00027944,2]
[337097983,1725424244468,-500.0,0.00027944,2]
[337097984,1725424244477,-500.0,0.00027944,2]
[337097985,1725424244487,-500.0,0.00027944,2]
[337097986,1725424244497,-500.0,0.00027944,2]
[337097987,1725424244508,-500.0,0.00027944,2]
[337097988,1725424244521,-500.0,0.00027944,2]
[337097989,1725424244533,-500.0,0.00027944,2]
[337097990,1725424244544,-500.0,0.00027944,2]
[337097991,1725424244555,-500.0,0.00027944,2]
[337097992,1725424244567,-500.0,0.00027944,2]
[337097993,1725424244577,-504.16388894,0.00027944,2]
[337097994,1725424244588,-500.0,0.00027944,2]
[337097996,1725424244601,-500.0,0.00027944,2]
[337097997,1725424244614,-500.0,0.00027944,2]
[337097998,1725424244625,-515.76136767,0.00027944,2]
[337097999,1725424244635,-502.2038203,0.00027944,2]
[337098000,1725424244647,-500.0,0.00027944,2]
[337098001,1725424244772,-500.0,0.00027944,2]
[337098002,1725424244784,-500.0,0.00027944,2]
[337098003,1725424244795,-500.0,0.00027944,2]
[337098004,1725424244805,-500.0,0.00027944,2]
[337098005,1725424244816,-211.32310334,0.00027944,2]
[337098006,1725424244828,-500.0,0.00027944,2]
[337098007,1725424244839,-500.0,0.00027944,2]
[337098008,1725424244849,-500.0,0.00027944,2]
[337098009,1725424244860,-500.0,0.00027944,2]
[337098010,1725424244870,-265.01912019,0.00027944,2]
[337098011,1725424244881,-500.0,0.00027944,2]
[337098012,1725424244890,-500.0,0.00027944,2]
[337098013,1725424244900,-500.0,0.00027945,2]
[337098014,1725424244911,-500.0,0.00027945,2]
[337098015,1725424244920,-500.0,0.00027945,2]
[337098016,1725424244932,-273.24,0.00027945,2]
[337098017,1725424244942,-500.0,0.00027945,2]
[337098018,1725424244952,-500.0,0.00027945,2]
[337098019,1725424244961,-500.0,0.00027945,2]
[337098020,1725424244971,-500.0,0.00027945,2]
[337098021,1725424244980,-500.0,0.00027945,2]
[337098022,1725424244989,-220.03224461,0.00027945,2]
[337098023,1725424244999,-500.0,0.00027945,2]
[337098024,1725424245010,-500.0,0.00027945,2]
[337098025,1725424245021,-500.0,0.00027945,2]
[337098026,1725424245031,-500.0,0.00027945,2]
[337098027,1725424245040,-500.0,0.00027945,2]
[337098028,1725424245049,-500.0,0.00027945,2]
[337098029,1725424245058,-477.13205895,0.00027945,2]
[337098034,1725424246723,-22.86794105,0.00027945,2]
[337098035,1725424246733,-378.92855604,0.00027945,2]
[337098037,1725424447266,500.0,0.0001,2]
[337098038,1725424447655,500.0,0.0001,2]
[337098039,1725424447950,500.0,0.0001,2]
[337098040,1725424448257,500.0,0.0001,2]
[337098041,1725424449035,500.0,0.0001,2]
[337098042,1725424449388,500.0,0.0001,2]
[337098043,1725424449686,469.19664256,0.0001,2]
[337098044,1725424564049,574.150764,0.0001,2]
[337098046,1725425135192,-556.359937,0.00024658,2]
[337098047,1725425135214,-300.0,0.00024771,2]
[337098048,1725425135238,-268.0,0.00024771,2]
[337098049,1725425135261,-37.53130957,0.00024772,2]
[337098050,1725425139096,-2161.37990263,0.00024772,2]
[337098051,1725425226095,-604.36837461,0.00024648,6]
[337098052,1725425226117,-300.0,0.00024771,2]
[337098053,1725425226139,-19493.9455899,0.00024772,2]
[337098054,1725425233112,-1855.72687294,0.00024772,2]
[337098055,1725425240116,-998.07639786,0.00024772,2]
[337098056,1725425240160,-353.3399271,0.00024772,2]
[337098057,1725425240183,-96.6600729,0.00024895,6]
[337098058,1725425252110,-206.0668519,0.00024895,6]
[337098059,1725425252136,-1512.51093101,0.0002492,2]
[337098060,1725425254117,-853.09630869,0.0002492,2]
[337098061,1725425254139,-180.698025,0.00025041,2]
[337098062,1725425254161,-250.0,0.00025704,2]
[337098063,1725425254183,-250.0,0.00025774,2]
[337098064,1725425254209,-250.0,0.00025845,2]
[337098065,1725425254229,-250.0,0.00025915,2]
[337098066,1725425254397,-250.0,0.00025986,2]
[337098067,1725425254421,-111.8767051,0.00027148,2]
[337098085,1725425431678,-201.4213272,0.00025777,2]
[337098086,1725425431688,-250.0,0.00026056,2]
[337098087,1725425431698,-250.0,0.00026127,2]
[337098088,1725425431707,-250.0,0.00026197,2]
[337098089,1725425431716,-250.0,0.00026268,2]
[337098090,1725425431725,-250.0,0.00026338,2]
[337098091,1725425431735,-250.0,0.00026409,2]
[337098092,1725425431744,-250.0,0.00026479,2]
[337098093,1725425431754,-250.0,0.0002655,2]
[337098094,1725425431763,-250.0,0.0002662,2]
[337098095,1725425431773,-250.0,0.00026691,2]
[337098096,1725425431783,-133.95208284,0.00026761,2]
[337098115,1725425438341,-116.04791716,0.00026761,2]
[337098116,1725425438351,-250.0,0.00026832,2]
[337098117,1725425438361,-65.27558882,0.00026902,2]
[337098118,1725425438408,-184.72441118,0.00026902,2]
[337098119,1725425438417,-250.0,0.00026973,2]
[337098120,1725425438427,-250.0,0.00027043,2]
[337098121,1725425438436,-300.0,0.00027182,2]
[337098122,1725425438445,-1000.0,0.00027183,2]
[337098123,1725425438454,-509.59804921,0.00027183,2]
[337098124,1725425438471,-1940.44006707,0.00027183,2]
[337098125,1725425438480,-521.66397051,0.00027195,2]
[337098126,1725425438490,-175.47,0.00027273,3]
[337098127,1725425438499,-526.41,0.00027273,3]
[337098128,1725425438508,-768.12,0.00027273,3]
[337098129,1725425438518,-317.25949306,0.00027282,2]
[337098130,1725425438527,-500.0,0.00027282,2]
[337098131,1725425438537,-500.0,0.00027282,2]
[337098132,1725425438547,-375.59971054,0.00027282,2]
[337098133,1725425438557,-10548.46220806,0.00027282,15]
[337098134,1725425438566,-354278.407407,0.00027283,3]
[337098135,1725425438576,-42004.18630836,0.00027283,2]
[337098140,1725425441769,572.93825,0.00024658,2]
[337098158,1725425443360,-3428.23902882,0.00026087,2]
[337098159,1725425443372,-455.57166693,0.00026087,2]
[337098160,1725425443475,-21016.18930425,0.00026087,2]
[337098161,1725425443486,-12289.58385206,0.0002718,2]
[337098162,1725425443532,-18175.496,0.0002718,2]
[337098164,1725425443543,-8502.94999999,0.0002718,2]
[337098168,1725426336263,-200.0,0.00021,5]
[337098169,1725426336287,-200.0,0.00022,5]
[337098170,1725426336310,-200.0,0.00023,5]
[337098171,1725426336334,-309.521094,0.00023881,2]
[337098172,1725426336356,-167.808552,0.00023969,2]
[337098173,1725426336376,-200.0,0.00024,5]
[337098174,1725426336397,-167.808552,0.00024073,2]
[337098175,1725426336418,-11.30533014,0.00024177,2]
[337098176,1725426351099,-156.50322186,0.00024177,2]
[337098177,1725426351125,-167.808552,0.00024281,2]
[337098178,1725426351146,-167.808552,0.00024385,2]
[337098179,1725426351166,-167.808552,0.00024489,2]
[337098180,1725426351191,-167.808552,0.00024593,2]
[337098181,1725426351211,-760.2495268,0.00024611,2]
[337098182,1725426351233,-257.337557,0.00024658,2]
[337098183,1725426426947,-271.204383,0.00024658,2]
[337098184,1725426426973,-167.808552,0.00024697,2]
[337098185,1725426426994,-15.89282726,0.00024801,2]
[337098186,1725426430249,-151.91572474,0.00024801,2]
[337098187,1725426430281,-167.808552,0.00024905,2]
[337098188,1725426430306,-200.0,0.00025,5]
[337098189,1725426430332,-167.808552,0.00025009,2]
[337098190,1725426430354,-140.84379565,0.00025114,2]
[337098191,1725426434609,-26.96475635,0.00025114,2]
[337098192,1725426434631,-167.808552,0.00025218,2]
[337098193,1725426434653,-189.58226665,0.00025457,2]
[337098194,1725426447153,-1071.85777829,0.00024468,2]
[337098196,1725426454109,-1100.78195086,0.00024468,2]
[337098197,1725426547161,-300.0,0.00024467,2]
[337098198,1725426547187,-300.0,0.00024467,2]
[337098199,1725426547211,-3966.63186592,0.00024468,2]
[337098200,1725426556121,-18760.72840493,0.00024468,2]
[337098201,1725426563117,-544.291337,0.00024658,2]
[337098202,1725426563138,-514.6987691,0.00025555,2]
[337098203,1725426563163,-117.38853896,0.00025655,2]
[337098211,1725426607622,465.19049513,0.00023892,2]
[337098240,1725426631864,-465.00952476,0.00025087,2]
[337098241,1725426631875,-53.77560594,0.00025655,2]
[337098242,1725426631887,-150.0,0.00025964,2]
[337098243,1725426631897,-57.42159043,0.00026,5]
[337098247,1725426638243,-142.57840957,0.00026,5]
[337098248,1725426638254,-172.65810162,0.00026006,2]
[337098249,1725426638265,-300.0,0.00026095,2]
[337098250,1725426638276,-300.0,0.00026095,2]
[337098251,1725426638289,-1491.48,0.00026096,3]
[337098252,1725426638299,-1242.9,0.00026096,3]
[337098253,1725426638309,-621.45,0.00026096,3]
[337098254,1725426638320,-310.72,0.00026096,3]
[337098255,1725426638332,-155.36,0.00026096,3]
[337098256,1725426638341,-466.11,0.00026096,3]
[337098257,1725426638351,-1340.25,0.00026096,3]
[337098258,1725426638361,-150.112233,0.000261,5]
[337098259,1725426638370,-150.112237,0.000261,8]
[337098260,1725426638380,-511.49999902,0.00026105,2]
[337098261,1725426638390,-171.67910196,0.00026105,2]
[337098262,1725426638400,-500.0,0.00026105,2]
[337098263,1725426638409,-500.0,0.00026105,2]
[337098264,1725426638418,-500.0,0.00026105,2]
[337098265,1725426638428,-500.0,0.00026105,2]
[337098266,1725426638437,-408.14520963,0.00026105,2]
[337098267,1725426638446,-500.0,0.00026105,2]
[337098268,1725426638457,-500.0,0.00026105,2]
[337098269,1725426638469,-500.0,0.00026105,2]
[337098270,1725426638479,-500.0,0.00026105,2]
[337098271,1725426638490,-435.38089595,0.00026105,2]
[337098272,1725426638500,-500.0,0.00026105,2]
[337098273,1725426638514,-455.42146536,0.00026105,2]
[337098274,1725426638524,-500.0,0.00026105,2]
[337098275,1725426638533,-500.0,0.00026105,2]
[337098276,1725426638542,-563.41820041,0.00026105,2]
[337098277,1725426638551,-10548.46220806,0.00026105,15]
[337098278,1725426638561,-14120.12280773,0.00026105,15]
[337098279,1725426638571,-415554.371103,0.00026106,3]
[337098280,1725426638580,-885356.929143,0.00026106,2]
[337098281,1725426638589,-339201.45791872,0.00026116,2]
[337098282,1725426638598,-5333.74055393,0.00026133,2]
[337098283,1725426638608,-501.25516806,0.00026173,2]
[337098284,1725426638617,-500.0,0.00026173,2]
[337098285,1725426638626,-418.16,0.000262,7]
[337098286,1725426638636,-150.0,0.00026234,2]
[337098287,1725426638645,-3000.0,0.000264,2]
[337098288,1725426638655,-5333.74055393,0.000264,2]
[337098289,1725426638664,-3000.0,0.0002641,2]
[337098290,1725426638673,-3000.0,0.0002642,2]
[337098291,1725426638682,-3150.0,0.0002643,2]
[337098292,1725426638692,-150.0,0.00026473,2]
[337098293,1725426638702,-1000.0,0.00026529,2]
[337098294,1725426638712,-5333.74055393,0.00026588,2]
[337098295,1725426638721,-150.57492097,0.00026691,2]
[337098296,1725426638731,-579.62663398,0.00026698,2]
[337098297,1725426638741,-1000.0,0.00026721,2]
[337098298,1725426638753,-150.112233,0.000268,6]
[337098299,1725426638762,-150.112233,0.000268,5]
[337098300,1725426638772,-150.112233,0.000268,6]
[337098301,1725426638782,-150.112233,0.000268,8]
[337098302,1725426638791,-150.112233,0.000268,5]
[337098303,1725426638801,-150.112233,0.000268,6]
[337098304,1725426638810,-150.112233,0.000268,7]
[337098305,1725426638819,-150.112233,0.000268,6]
[337098306,1725426638828,-150.112233,0.000268,9]
[337098307,1725426638838,-268.09675,0.000268,8]
[337098308,1725426638849,-267.57,0.000268,14]
[337098309,1725426638861,-10000.0,0.00027,7]
[337098310,1725426638872,-200.0,0.00027,5]
[337098311,1725426638883,-5333.74055393,0.00027045,2]
[337098312,1725426638895,-44532.68191978,0.00027167,4]
[337098313,1725426638909,-47060.95195068,0.000272,14]
[337098314,1725426638925,-316751.15804932,0.000272,14]
[337098315,1725426638936,-1155.55,0.000272,14]
[337098316,1725426638947,-617.19782547,0.00027282,2]
[337098317,1725426638958,-2395.87065616,0.00027297,2]
[337098318,1725426638970,-500.0,0.00027373,2]
[337098319,1725426638980,-255.0334715,0.00027373,2]
[337098320,1725426638990,-500.0,0.00027397,2]
[337098321,1725426639009,-596.93,0.00027397,2]
[337098322,1725426639019,-500.0,0.00027397,2]
[337098323,1725426639028,-211.32310334,0.00027397,2]
[337098324,1725426639038,-500.0,0.00027397,2]
[337098325,1725426639049,-500.0,0.00027397,2]
[337098326,1725426639058,-500.0,0.00027397,2]
[337098327,1725426639067,-500.0,0.00027397,2]
[337098328,1725426639076,-500.0,0.00027397,2]
[337098329,1725426639086,-500.0,0.00027397,2]
[337098330,1725426639096,-500.0,0.00027397,2]
[337098331,1725426639105,-500.0,0.00027397,2]
[337098332,1725426639115,-500.0,0.00027397,2]
[337098333,1725426639126,-500.0,0.00027397,2]
[337098334,1725426639137,-500.0,0.00027397,2]
[337098335,1725426639147,-500.0,0.00027397,2]
[337098336,1725426639159,-500.0,0.00027397,2]
[337098337,1725426639170,-500.0,0.00027397,2]
[337098338,1725426639180,-500.0,0.00027397,2]
[337098339,1725426639190,-500.0,0.00027397,2]
[337098340,1725426639202,-500.0,0.00027397,2]
[337098341,1725426639213,-359.35,0.00027397,2]
[337098342,1725426639224,-500.0,0.00027397,2]
[337098343,1725426639235,-500.0,0.00027397,2]
[337098344,1725426639246,-500.0,0.00027397,2]
[337098345,1725426639258,-500.0,0.00027397,2]
[337098346,1725426639273,-500.0,0.00027397,2]
[337098347,1725426639289,-500.0,0.00027397,2]
[337098348,1725426639299,-500.0,0.00027397,2]
[337098349,1725426639308,-500.0,0.00027397,2]
[337098350,1725426639318,-500.0,0.00027397,2]
[337098351,1725426639328,-500.0,0.00027397,2]
[337098352,1725426639338,-500.0,0.00027397,2]
[337098353,1725426639348,-500.0,0.00027397,2]
[337098354,1725426639358,-500.0,0.00027397,2]
[337098355,1725426639370,-500.0,0.00027397,2]
[337098356,1725426639380,-500.0,0.00027397,2]
[337098357,1725426639390,-500.0,0.00027397,2]
[337098358,1725426639400,-500.0,0.00027397,2]
[337098359,1725426639410,-500.0,0.00027397,2]
[337098360,1725426639420,-500.0,0.00027397,2]
[337098361,1725426639430,-500.0,0.00027397,2]
[337098362,1725426639440,-500.0,0.00027397,2]
[337098363,1725426639449,-603.45,0.00027397,2]
[337098364,1725426639459,-500.0,0.00027397,2]
[337098365,1725426639469,-500.0,0.00027397,2]
[337098366,1725426639479,-500.0,0.00027397,2]
[337098368,1725426639489,-500.0,0.00027397,2]
[337098370,1725426639500,-500.0,0.00027397,2]
[337098372,1725426639510,-500.0,0.00027397,2]
[337098374,1725426639519,-500.0,0.00027397,2]
[337098377,1725426639529,-500.0,0.00027397,2]
[337098378,1725426639540,-500.0,0.00027397,2]
[337098379,1725426639550,-500.0,0.00027397,2]
[337098380,1725426639562,-500.0,0.00027397,2]
[337098381,1725426639572,-500.0,0.00027397,2]
[337098382,1725426639583,-500.0,0.00027397,2]
[337098383,1725426639593,-500.0,0.00027397,2]
[337098384,1725426639603,-500.0,0.00027397,2]
[337098385,1725426639612,-500.0,0.00027397,2]
[337098386,1725426639622,-500.0,0.00027397,2]
[337098387,1725426639632,-500.0,0.00027397,2]
[337098388,1725426639641,-500.0,0.00027397,2]
[337098389,1725426639651,-500.0,0.00027397,2]
[337098390,1725426639661,-512.17408081,0.00027397,2]
[337098391,1725426639670,-183.66104336,0.00027397,2]
[337098392,1725426639680,-500.0,0.00027397,2]
[337098393,1725426639690,-500.0,0.00027397,2]
[337098394,1725426639700,-500.0,0.00027397,2]
[337098395,1725426639710,-500.0,0.00027397,2]
[337098396,1725426639719,-500.0,0.00027397,2]
[337098397,1725426639729,-500.0,0.00027397,2]
[337098398,1725426639738,-500.0,0.00027397,2]
[337098400,1725426639749,-500.0,0.00027397,2]
[337098401,1725426639758,-500.0,0.00027397,2]
[337098402,1725426639768,-500.0,0.00027397,2]
[337098403,1725426639780,-500.0,0.00027397,2]
[337098404,1725426639790,-500.0,0.00027397,2]
[337098405,1725426639800,-500.0,0.00027397,2]
[337098406,1725426639811,-1302.87,0.00027397,2]
[337098407,1725426639822,-500.0,0.00027397,2]
[337098408,1725426639832,-1156.02,0.00027397,2]
[337098409,1725426639844,-500.0,0.00027397,2]
[337098410,1725426639854,-760.8,0.00027397,2]
[337098411,1725426639866,-500.0,0.00027397,2]
[337098412,1725426639878,-500.0,0.00027397,2]
[337098413,1725426639888,-500.0,0.00027397,2]
[337098414,1725426639898,-500.0,0.00027397,2]
[337098415,1725426639912,-500.0,0.00027397,2]
[337098416,1725426639921,-500.0,0.00027397,2]
[337098417,1725426639931,-2082.53,0.00027397,2]
[337098418,1725426639941,-10473.4,0.00027397,2]
[337098419,1725426639952,-500.0,0.00027397,2]
[337098420,1725426639964,-500.0,0.00027397,2]
[337098421,1725426639976,-500.0,0.00027397,2]
[337098422,1725426639987,-500.0,0.00027397,2]
[337098423,1725426639999,-500.0,0.00027397,2]
[337098424,1725426640008,-500.0,0.00027397,2]
[337098425,1725426640018,-885.72,0.00027397,2]
[337098426,1725426640027,-500.0,0.00027397,2]
[337098427,1725426640037,-500.0,0.00027397,2]
[337098428,1725426640047,-871.3,0.00027397,2]
[337098429,1725426640058,-500.0,0.00027397,2]
[337098430,1725426640068,-500.0,0.00027397,2]
[337098431,1725426640080,-500.0,0.00027397,2]
[337098432,1725426640089,-500.0,0.00027397,2]
[337098433,1725426640099,-500.0,0.00027397,2]
[337098434,1725426640110,-500.0,0.00027397,2]
[337098435,1725426640122,-500.0,0.00027397,2]
[337098436,1725426640134,-500.0,0.00027397,2]
[337098437,1725426640144,-2887.27,0.00027397,2]
[337098438,1725426640156,-500.0,0.00027397,2]
[337098439,1725426640167,-504.16388894,0.00027397,2]
[337098440,1725426640177,-500.0,0.00027397,2]
[337098441,1725426640188,-1285.92,0.00027397,2]
[337098442,1725426640199,-500.0,0.00027397,2]
[337098443,1725426640209,-500.0,0.00027397,2]
[337098444,1725426640220,-500.0,0.00027397,2]
[337098445,1725426640231,-985.59,0.00027397,2]
[337098446,1725426640242,-500.0,0.00027397,2]
[337098447,1725426640252,-500.0,0.00027397,2]